[Event "Late-Titled-Tuesday-Blitz-October-17-2023"]
[Site "Chess.com"]
[Date "2023.10.17"]
[Round "4"]
[White "Sokoloco"]
[Black "Fdpo95"]
[Result "1-0"]
[WhiteElo "2710"]
[BlackElo "2498"]
[TimeControl "180+1"]
[EndTime "14:39:34 PDT"]
[Termination "Sokoloco won by resignation"]

1. b3 {[%clk 0:03:00.9]} 1... Nf6 {[%clk 0:02:58.9]} 2. Bb2 {[%clk 0:03:01.8]}
2... g6 {[%clk 0:02:59.4]} 3. c4 {[%clk 0:02:57.4]} 3... Bg7 {[%clk 0:02:59.1]}
4. Nf3 {[%clk 0:02:58.1]} 4... O-O {[%clk 0:02:59.1]} 5. g3 {[%clk 0:02:58.9]}
5... d5 {[%clk 0:02:59.1]} 6. cxd5 {[%clk 0:02:58.5]} 6... Nxd5 {[%clk
0:02:59.3]} 7. Bxg7 {[%clk 0:02:58.3]} 7... Kxg7 {[%clk 0:03:00.2]} 8. Bg2
{[%clk 0:02:58.8]} 8... c5 {[%clk 0:02:40.3]} 9. Qc2 {[%clk 0:02:44.2]} 9... b6
{[%clk 0:02:35.1]} 10. Nc3 {[%clk 0:02:31.6]} 10... Bb7 {[%clk 0:02:29.7]} 11.
O-O {[%clk 0:02:06.7]} 11... Nd7 {[%clk 0:02:12.6]} 12. Nxd5 {[%clk 0:01:36.8]}
12... Bxd5 {[%clk 0:02:13.5]} 13. e4 {[%clk 0:01:37.7]} 13... Bb7 {[%clk
0:02:11.5]} 14. d4 {[%clk 0:01:38.6]} 14... cxd4 {[%clk 0:02:10.6]} 15. Nxd4
{[%clk 0:01:39.5]} 15... Rc8 {[%clk 0:02:08.4]} 16. Qb2 {[%clk 0:01:39.9]} 16...
Kg8 {[%clk 0:02:08.6]} 17. Rfd1 {[%clk 0:01:38.6]} 17... Qe8 {[%clk 0:02:07.3]}
18. Ne2 {[%clk 0:01:28.6]} 18... Nc5 {[%clk 0:01:58]} 19. Nc3 {[%clk 0:01:29]}
19... Ne6 {[%clk 0:01:56.7]} 20. Nd5 {[%clk 0:01:25.9]} 20... Bxd5 {[%clk
0:01:56]} 21. exd5 {[%clk 0:01:20.8]} 21... Nc5 {[%clk 0:01:55.2]} 22. d6 {[%clk
0:01:08.5]} 22... exd6 {[%clk 0:01:52.8]} 23. Rxd6 {[%clk 0:01:09.4]} 23... Qe7
{[%clk 0:01:50.4]} 24. Rad1 {[%clk 0:01:07.8]} 24... Rfd8 {[%clk 0:01:49.9]} 25.
Qd4 {[%clk 0:00:59.1]} 25... Ne6 {[%clk 0:01:35.7]} 26. Qe5 {[%clk 0:00:41.3]}
26... Rxd6 {[%clk 0:01:35.5]} 27. Qxd6 {[%clk 0:00:42.2]} 27... Qxd6 {[%clk
0:01:35]} 28. Rxd6 {[%clk 0:00:43.1]} 28... Rc1+ {[%clk 0:01:35.4]} 29. Bf1
{[%clk 0:00:43.7]} 29... Rc2 {[%clk 0:01:33.4]} 30. a4 {[%clk 0:00:41.7]} 30...
Kf8 {[%clk 0:01:16.5]} 31. Bc4 {[%clk 0:00:39.3]} 31... Ke7 {[%clk 0:01:13.7]}
32. Rd5 {[%clk 0:00:27.2]} 32... h5 {[%clk 0:00:58]} 33. h4 {[%clk 0:00:25.4]}
33... Rc3 {[%clk 0:00:53.4]} 34. Rd3 {[%clk 0:00:04.5]} 34... Rxd3 {[%clk
0:00:42.2]} 35. Bxd3 {[%clk 0:00:05.4]} 35... Nc5 {[%clk 0:00:38.6]} 36. Bc4
{[%clk 0:00:06.1]} 36... f6 {[%clk 0:00:37.8]} 37. Kg2 {[%clk 0:00:06]} 37...
Kd6 {[%clk 0:00:37.6]} 38. Bf7 {[%clk 0:00:05.1]} 38... g5 {[%clk 0:00:36.1]}
39. Bxh5 {[%clk 0:00:03.5]} 39... gxh4 {[%clk 0:00:35.9]} 40. gxh4 {[%clk
0:00:03.5]} 40... Nxb3 {[%clk 0:00:27]} 41. Be8 {[%clk 0:00:03.2]} 41... Nd4
{[%clk 0:00:27.7]} 42. h5 {[%clk 0:00:02.8]} 42... Nf5 {[%clk 0:00:28.4]} 43.
Kf3 {[%clk 0:00:02.2]} 43... Ke5 {[%clk 0:00:26.8]} 44. Bg6 {[%clk 0:00:01.9]}
44... Nh6 {[%clk 0:00:26.5]} 45. Ke3 {[%clk 0:00:02.1]} 45... a6 {[%clk
0:00:26.1]} 46. f4+ {[%clk 0:00:02.4]} 46... Kd5 {[%clk 0:00:25.2]} 47. Kd3
{[%clk 0:00:03.1]} 47... b5 {[%clk 0:00:24.6]} 48. a5 {[%clk 0:00:03.7]} 48...
f5 {[%clk 0:00:20.5]} 49. Be8 {[%clk 0:00:03.4]} 49... Kc5 {[%clk 0:00:20.6]}
50. Kc3 {[%clk 0:00:04]} 50... Kd5 {[%clk 0:00:16.7]} 51. Kb4 {[%clk 0:00:04.1]}
51... Kd4 {[%clk 0:00:16.5]} 52. Bxb5 {[%clk 0:00:04.1]} 52... axb5 {[%clk
0:00:16]} 53. a6 {[%clk 0:00:05]} 53... Ke4 {[%clk 0:00:16.8]} 54. a7 {[%clk
0:00:05.5]} 54... Kxf4 {[%clk 0:00:17.7]} 55. a8=Q {[%clk 0:00:06]} 55... Kg5
{[%clk 0:00:18.5]} 56. Qe8 {[%clk 0:00:06.4]} 56... Ng4 {[%clk 0:00:18]} 57.
Qg6+ {[%clk 0:00:06.8]} 57... Kf4 {[%clk 0:00:18.9]} 58. h6 {[%clk 0:00:07.2]}
58... Kg3 {[%clk 0:00:19.8]} 59. h7 {[%clk 0:00:07.6]} 59... f4 {[%clk
0:00:20.7]} 60. h8=Q {[%clk 0:00:08.1]} 60... f3 {[%clk 0:00:21.6]} 61. Qhg7
{[%clk 0:00:08.6]} 61... f2 {[%clk 0:00:22.5]} 62. Qxg4+ {[%clk 0:00:09.2]} 1-0

[Event "Late-Titled-Tuesday-Blitz-October-17-2023"]
[Site "Chess.com"]
[Date "2023.10.17"]
[Round "4"]
[White "icy"]
[Black "NotFischer"]
[Result "1-0"]
[WhiteElo "2405"]
[BlackElo "2254"]
[TimeControl "180+1"]
[EndTime "14:39:37 PDT"]
[Termination "icy won by resignation"]

1. Nf3 {[%clk 0:03:00.9]} 1... g6 {[%clk 0:02:59.9]} 2. g3 {[%clk 0:02:59.2]}
2... Bg7 {[%clk 0:03:00.7]} 3. Bg2 {[%clk 0:03:00.1]} 3... Nf6 {[%clk
0:03:00.9]} 4. O-O {[%clk 0:03:01]} 4... d6 {[%clk 0:03:01.4]} 5. d4 {[%clk
0:03:00.6]} 5... O-O {[%clk 0:03:00.3]} 6. Re1 {[%clk 0:03:00.8]} 6... Nbd7
{[%clk 0:03:00.4]} 7. e4 {[%clk 0:03:00.8]} 7... e5 {[%clk 0:02:58]} 8. Nc3
{[%clk 0:02:55.7]} 8... c6 {[%clk 0:02:58]} 9. b3 {[%clk 0:02:54.7]} 9... Qc7
{[%clk 0:02:57.7]} 10. Ba3 {[%clk 0:02:43.8]} 10... Rd8 {[%clk 0:02:55.9]} 11.
dxe5 {[%clk 0:02:43.3]} 11... Nxe5 {[%clk 0:02:55.5]} 12. Bb2 {[%clk 0:02:32.3]}
12... Bg4 {[%clk 0:02:51]} 13. Nb1 {[%clk 0:02:29.6]} 13... Re8 {[%clk
0:02:09.4]} 14. Nbd2 {[%clk 0:02:25.6]} 14... Rad8 {[%clk 0:02:07.4]} 15. h3
{[%clk 0:02:20.4]} 15... Nxf3+ {[%clk 0:02:06.5]} 16. Nxf3 {[%clk 0:02:19.9]}
16... Bc8 {[%clk 0:01:58.2]} 17. Nd4 {[%clk 0:02:06]} 17... Qb6 {[%clk
0:01:52.6]} 18. Qd2 {[%clk 0:01:58.4]} 18... Nh5 {[%clk 0:01:44.2]} 19. c4
{[%clk 0:01:51.5]} 19... a5 {[%clk 0:01:20.6]} 20. Nf3 {[%clk 0:01:31.8]} 20...
Nxg3 {[%clk 0:01:08]} 21. Bxg7 {[%clk 0:01:24.8]} 21... Kxg7 {[%clk 0:01:08.2]}
22. Qc3+ {[%clk 0:01:16.4]} 22... f6 {[%clk 0:00:56.7]} 23. e5 {[%clk
0:01:08.1]} 23... Nh5 {[%clk 0:00:33]} 24. exd6 {[%clk 0:00:58]} 24... Nf4
{[%clk 0:00:22.3]} 25. c5 {[%clk 0:00:57.8]} 25... Qb4 {[%clk 0:00:20.3]} 26.
Qxb4 {[%clk 0:00:53.3]} 26... axb4 {[%clk 0:00:21.2]} 27. Kh2 {[%clk 0:00:41.2]}
27... Nd3 {[%clk 0:00:21]} 28. Re7+ {[%clk 0:00:26.5]} 28... Kf8 {[%clk
0:00:19.2]} 29. Rxh7 {[%clk 0:00:24]} 29... Nxc5 {[%clk 0:00:18.9]} 30. Nh4
{[%clk 0:00:18.2]} 30... Kg8 {[%clk 0:00:17.5]} 31. Re7 {[%clk 0:00:12.7]} 31...
Rxe7 {[%clk 0:00:17.1]} 32. dxe7 {[%clk 0:00:13.2]} 32... Re8 {[%clk 0:00:18]}
33. Rd1 {[%clk 0:00:10.9]} 33... Kg7 {[%clk 0:00:15.9]} 34. Rd8 {[%clk
0:00:10.2]} 34... Kf7 {[%clk 0:00:16.3]} 35. Nxg6 {[%clk 0:00:06.3]} 35... Bd7
{[%clk 0:00:13.7]} 36. Rxe8 {[%clk 0:00:04.1]} 36... Bxe8 {[%clk 0:00:12.8]} 37.
Nf4 {[%clk 0:00:02]} 37... Kxe7 {[%clk 0:00:12.5]} 38. h4 {[%clk 0:00:02.3]}
38... Bf7 {[%clk 0:00:12.3]} 39. h5 {[%clk 0:00:02.4]} 39... Nd7 {[%clk
0:00:09.5]} 40. Be4 {[%clk 0:00:01.8]} 40... Nf8 {[%clk 0:00:08.1]} 41. h6
{[%clk 0:00:01.6]} 41... Bg8 {[%clk 0:00:08.4]} 42. Ng6+ {[%clk 0:00:01.5]}
42... Nxg6 {[%clk 0:00:07.8]} 43. Bxg6 {[%clk 0:00:02.4]} 43... c5 {[%clk
0:00:05.9]} 44. h7 {[%clk 0:00:02.9]} 44... Bxh7 {[%clk 0:00:05.1]} 45. Bxh7
{[%clk 0:00:03.8]} 45... b5 {[%clk 0:00:05.3]} 46. Bd3 {[%clk 0:00:04.2]} 46...
c4 {[%clk 0:00:02.6]} 47. bxc4 {[%clk 0:00:05.1]} 47... bxc4 {[%clk 0:00:02.8]}
48. Bxc4 {[%clk 0:00:05.5]} 48... Kd6 {[%clk 0:00:03.7]} 49. Bb3 {[%clk
0:00:05.8]} 49... Kc5 {[%clk 0:00:04.6]} 50. Kg3 {[%clk 0:00:06.7]} 50... Kd4
{[%clk 0:00:05.5]} 51. Kf3 {[%clk 0:00:07.2]} 51... Kc3 {[%clk 0:00:06.4]} 52.
Kf4 {[%clk 0:00:07.6]} 52... Kb2 {[%clk 0:00:07.3]} 53. Kf5 {[%clk 0:00:08.5]}
53... Ka3 {[%clk 0:00:08.2]} 54. Kxf6 {[%clk 0:00:08.9]} 54... Kb2 {[%clk
0:00:09.1]} 55. f4 {[%clk 0:00:09.7]} 55... Kc3 {[%clk 0:00:10]} 56. f5 {[%clk
0:00:10.6]} 56... Kd3 {[%clk 0:00:10.9]} 57. Kg6 {[%clk 0:00:11.5]} 57... Ke4
{[%clk 0:00:11.8]} 58. f6 {[%clk 0:00:12.4]} 58... Ke5 {[%clk 0:00:12.4]} 59. f7
{[%clk 0:00:13.3]} 59... Kd6 {[%clk 0:00:13.2]} 60. f8=Q+ {[%clk 0:00:10.3]} 1-0

[Event "Late-Titled-Tuesday-Blitz-October-17-2023"]
[Site "Chess.com"]
[Date "2023.10.17"]
[Round "4"]
[White "Chesstrainer1"]
[Black "LaPiToB"]
[Result "1-0"]
[WhiteElo "2498"]
[BlackElo "2307"]
[TimeControl "180+1"]
[EndTime "14:39:42 PDT"]
[Termination "Chesstrainer1 won by resignation"]

1. d4 {[%clk 0:02:55.8]} 1... Nf6 {[%clk 0:02:56.4]} 2. c4 {[%clk 0:02:55.7]}
2... e6 {[%clk 0:02:54.5]} 3. g3 {[%clk 0:02:55.5]} 3... d5 {[%clk 0:02:54.3]}
4. Bg2 {[%clk 0:02:55.2]} 4... dxc4 {[%clk 0:02:49.1]} 5. Nf3 {[%clk 0:02:51.1]}
5... c5 {[%clk 0:02:48.7]} 6. O-O {[%clk 0:02:43]} 6... Nc6 {[%clk 0:02:46.9]}
7. dxc5 {[%clk 0:02:36.5]} 7... Qxd1 {[%clk 0:02:44]} 8. Rxd1 {[%clk 0:02:37.4]}
8... Bxc5 {[%clk 0:02:43.8]} 9. Nbd2 {[%clk 0:02:36.6]} 9... c3 {[%clk
0:02:42.4]} 10. bxc3 {[%clk 0:02:37.5]} 10... O-O {[%clk 0:02:42.3]} 11. Nb3
{[%clk 0:02:37.3]} 11... Be7 {[%clk 0:02:41.3]} 12. Nfd4 {[%clk 0:02:28.1]}
12... Bd7 {[%clk 0:02:40]} 13. a4 {[%clk 0:02:22.5]} 13... Rfc8 {[%clk
0:02:36.9]} 14. Nb5 {[%clk 0:01:59.1]} 14... Be8 {[%clk 0:01:50.5]} 15. a5
{[%clk 0:01:37.6]} 15... a6 {[%clk 0:01:37.4]} 16. Nd6 {[%clk 0:01:35.6]} 16...
Rd8 {[%clk 0:01:36.6]} 17. Bf4 {[%clk 0:01:28.7]} 17... e5 {[%clk 0:01:35.1]}
18. Nxe8 {[%clk 0:00:52.9]} 18... exf4 {[%clk 0:01:07.8]} 19. Nxf6+ {[%clk
0:00:26.7]} 19... Bxf6 {[%clk 0:01:07.2]} 20. Bxc6 {[%clk 0:00:17]} 20... bxc6
{[%clk 0:01:06.7]} 21. gxf4 {[%clk 0:00:16.7]} 21... Bxc3 {[%clk 0:01:04]} 22.
Rxd8+ {[%clk 0:00:14.5]} 22... Rxd8 {[%clk 0:01:03.3]} 23. Rc1 {[%clk
0:00:15.4]} 23... Bb4 {[%clk 0:00:42.5]} 24. Rxc6 {[%clk 0:00:14.9]} 24... h6
{[%clk 0:00:36.3]} 25. Rb6 {[%clk 0:00:13.1]} 25... Rd1+ {[%clk 0:00:36.2]} 26.
Kg2 {[%clk 0:00:12.4]} 26... Bc3 {[%clk 0:00:26]} 27. Rxa6 {[%clk 0:00:12.2]}
27... Rb1 {[%clk 0:00:25.7]} 28. Rb6 {[%clk 0:00:09.7]} 28... Bxa5 {[%clk
0:00:25]} 29. Rb5 {[%clk 0:00:08.7]} 29... Bc3 {[%clk 0:00:23]} 30. Nd4 {[%clk
0:00:06.9]} 30... Re1 {[%clk 0:00:20.3]} 31. Nf5 {[%clk 0:00:04.6]} 31... Rxe2
{[%clk 0:00:18.3]} 32. Rb8+ {[%clk 0:00:04.8]} 32... Kh7 {[%clk 0:00:18.2]} 33.
Rb7 {[%clk 0:00:05.7]} 33... Kg6 {[%clk 0:00:16.4]} 34. Nh4+ {[%clk 0:00:05.3]}
34... Kh5 {[%clk 0:00:15.8]} 35. Nf3 {[%clk 0:00:05.2]} 35... Bf6 {[%clk
0:00:13.1]} 36. Rxf7 {[%clk 0:00:03.7]} 36... Kg6 {[%clk 0:00:12.5]} 37. Rb7
{[%clk 0:00:03]} 37... Ra2 {[%clk 0:00:12.5]} 38. Kg3 {[%clk 0:00:03.2]} 38...
Ra3 {[%clk 0:00:12.5]} 39. Rb6 {[%clk 0:00:03.5]} 39... h5 {[%clk 0:00:12.8]}
40. h3 {[%clk 0:00:02.7]} 40... h4+ {[%clk 0:00:13.1]} 41. Kg4 {[%clk
0:00:02.6]} 41... Ra4 {[%clk 0:00:12.6]} 42. Ne5+ {[%clk 0:00:02.8]} 42... Kh7
{[%clk 0:00:12]} 43. Nf7 {[%clk 0:00:02.6]} 43... Kg8 {[%clk 0:00:11.4]} 44. Ng5
{[%clk 0:00:02.7]} 44... Kf8 {[%clk 0:00:10.6]} 45. Rb8+ {[%clk 0:00:02.3]}
45... Ke7 {[%clk 0:00:10.6]} 46. Rb7+ {[%clk 0:00:03.2]} 46... Kd6 {[%clk
0:00:10.7]} 47. f3 {[%clk 0:00:03.3]} 47... Kc6 {[%clk 0:00:10]} 48. Rf7 {[%clk
0:00:03]} 48... Kd6 {[%clk 0:00:08.3]} 49. Kxh4 {[%clk 0:00:03.1]} 49... Rxf4+
{[%clk 0:00:07.9]} 50. Kh5 {[%clk 0:00:02.1]} 50... Bxg5 {[%clk 0:00:07.5]} 51.
Rxg7 {[%clk 0:00:02.4]} 51... Bf6 {[%clk 0:00:07.3]} 52. Rg6 {[%clk 0:00:02.7]}
52... Ke5 {[%clk 0:00:07.7]} 53. Rg3 {[%clk 0:00:01.4]} 53... Rxf3 {[%clk
0:00:08.6]} 54. Rxf3 {[%clk 0:00:01.5]} 54... Ke6 {[%clk 0:00:09]} 55. Rg3
{[%clk 0:00:02.1]} 55... Be7 {[%clk 0:00:09.4]} 56. Rg4 {[%clk 0:00:02.7]} 56...
Kf5 {[%clk 0:00:10]} 57. h4 {[%clk 0:00:03.3]} 57... Bf6 {[%clk 0:00:10.6]} 58.
Rg5+ {[%clk 0:00:03.7]} 58... Bxg5 {[%clk 0:00:10.4]} 59. hxg5 {[%clk
0:00:03.7]} 59... Ke6 {[%clk 0:00:11.3]} 60. Kg6 {[%clk 0:00:03.7]} 60... Ke7
{[%clk 0:00:11.6]} 61. Kh7 {[%clk 0:00:04.3]} 61... Kf8 {[%clk 0:00:12.5]} 62.
g6 {[%clk 0:00:04.8]} 62... Ke7 {[%clk 0:00:12.5]} 63. g7 {[%clk 0:00:05.7]}
63... Kf6 {[%clk 0:00:13.4]} 64. g8=Q {[%clk 0:00:06.5]} 64... Kf5 {[%clk
0:00:14.2]} 65. Qg7 {[%clk 0:00:07.1]} 65... Kf4 {[%clk 0:00:15.1]} 66. Qh6+
{[%clk 0:00:07.8]} 1-0

[Event "Late-Titled-Tuesday-Blitz-October-17-2023"]
[Site "Chess.com"]
[Date "2023.10.17"]
[Round "4"]
[White "jcibarra"]
[Black "subham777"]
[Result "1-0"]
[WhiteElo "2908"]
[BlackElo "2566"]
[TimeControl "180+1"]
[EndTime "14:39:43 PDT"]
[Termination "jcibarra won by resignation"]

1. e4 {[%clk 0:03:00.9]} 1... e6 {[%clk 0:02:55.7]} 2. d4 {[%clk 0:03:00.8]}
2... d5 {[%clk 0:02:56]} 3. Nc3 {[%clk 0:03:01.6]} 3... Nf6 {[%clk 0:02:55.9]}
4. Bg5 {[%clk 0:03:01.2]} 4... Be7 {[%clk 0:02:56.1]} 5. e5 {[%clk 0:03:01.3]}
5... Nfd7 {[%clk 0:02:56.5]} 6. Bxe7 {[%clk 0:03:02]} 6... Qxe7 {[%clk 0:02:57]}
7. Qg4 {[%clk 0:03:02.6]} 7... O-O {[%clk 0:02:56.6]} 8. Bd3 {[%clk 0:03:02.4]}
8... c5 {[%clk 0:02:54.8]} 9. Nf3 {[%clk 0:03:01.8]} 9... f5 {[%clk 0:02:54.4]}
10. exf6 {[%clk 0:03:02.1]} 10... Nxf6 {[%clk 0:02:54.4]} 11. Qh4 {[%clk
0:03:02.6]} 11... Nc6 {[%clk 0:02:50.5]} 12. dxc5 {[%clk 0:03:01.5]} 12... Qxc5
{[%clk 0:02:46.1]} 13. O-O-O {[%clk 0:03:01.6]} 13... Bd7 {[%clk 0:02:39.7]} 14.
Rhe1 {[%clk 0:03:00.9]} 14... Rae8 {[%clk 0:02:32.3]} 15. Ne5 {[%clk 0:02:56]}
15... Nxe5 {[%clk 0:02:27.9]} 16. Rxe5 {[%clk 0:02:56.9]} 16... Bc6 {[%clk
0:02:21.6]} 17. f4 {[%clk 0:02:35.7]} 17... g6 {[%clk 0:02:11.1]} 18. Rg5 {[%clk
0:02:26]} 18... Kg7 {[%clk 0:01:58.5]} 19. Qg3 {[%clk 0:02:22.8]} 19... Rf7
{[%clk 0:01:52.2]} 20. h4 {[%clk 0:02:16]} 20... Kh8 {[%clk 0:01:50.1]} 21. Qe1
{[%clk 0:02:00.7]} 21... Nd7 {[%clk 0:01:41.3]} 22. g3 {[%clk 0:01:58.5]} 22...
Qf8 {[%clk 0:01:34.9]} 23. h5 {[%clk 0:01:54.6]} 23... gxh5 {[%clk 0:01:29.5]}
24. Rxh5 {[%clk 0:01:55.5]} 24... Rg7 {[%clk 0:01:28.3]} 25. Qf2 {[%clk
0:01:26.7]} 25... Nf6 {[%clk 0:01:25.1]} 26. Rh4 {[%clk 0:01:24.2]} 26... Ng4
{[%clk 0:01:19.8]} 27. Qxa7 {[%clk 0:01:19.3]} 27... e5 {[%clk 0:01:15.9]} 28.
fxe5 {[%clk 0:01:15.6]} 28... Nxe5 {[%clk 0:01:09.1]} 29. Qd4 {[%clk 0:01:13.8]}
29... Nxd3+ {[%clk 0:01:07.5]} 30. Qxd3 {[%clk 0:01:11]} 30... Qf2 {[%clk
0:01:04.2]} 31. Rdh1 {[%clk 0:01:02.4]} 31... Re1+ {[%clk 0:00:58.7]} 32. Nd1
{[%clk 0:01:00.8]} 32... Rxh1 {[%clk 0:00:54.1]} 33. Rxh1 {[%clk 0:01:00.2]}
33... Qxg3 {[%clk 0:00:53.2]} 34. Rxh7+ {[%clk 0:00:59.6]} 34... Kg8 {[%clk
0:00:50.4]} 35. Rxg7+ {[%clk 0:00:58.5]} 35... Qxg7 {[%clk 0:00:51.3]} 36. c3
{[%clk 0:00:52.7]} 36... Qg5+ {[%clk 0:00:48.6]} 37. Qd2 {[%clk 0:00:52.9]}
37... Qg4 {[%clk 0:00:45.6]} 38. b3 {[%clk 0:00:50.4]} 38... Qe4 {[%clk
0:00:44.8]} 39. Kb2 {[%clk 0:00:50]} 39... Be8 {[%clk 0:00:43.7]} 40. Ne3 {[%clk
0:00:49.6]} 40... Bc6 {[%clk 0:00:40.4]} 41. Nc2 {[%clk 0:00:44]} 41... Kf7
{[%clk 0:00:39.2]} 42. Nd4 {[%clk 0:00:43.2]} 42... Ke7 {[%clk 0:00:37.3]} 43.
a4 {[%clk 0:00:41.8]} 43... Kd6 {[%clk 0:00:36.3]} 44. Qh2+ {[%clk 0:00:41.9]}
44... Kd7 {[%clk 0:00:35.5]} 45. Qf2 {[%clk 0:00:33.9]} 45... Qe7 {[%clk
0:00:30.2]} 46. Qf5+ {[%clk 0:00:33.1]} 46... Kc7 {[%clk 0:00:29.1]} 47. Qf4+
{[%clk 0:00:30.9]} 47... Kd7 {[%clk 0:00:28.3]} 48. a5 {[%clk 0:00:28.6]} 48...
Qh7 {[%clk 0:00:26.1]} 49. Nf5 {[%clk 0:00:17]} 49... Qg6 {[%clk 0:00:20.6]} 50.
Ka3 {[%clk 0:00:17]} 50... Qf6 {[%clk 0:00:19.4]} 51. Kb2 {[%clk 0:00:12.7]}
51... Qg6 {[%clk 0:00:18.9]} 52. Nd4 {[%clk 0:00:12]} 52... Qg2+ {[%clk
0:00:17.8]} 53. Ka3 {[%clk 0:00:12.2]} 53... Qg6 {[%clk 0:00:18.5]} 54. Qf5+
{[%clk 0:00:10]} 54... Qxf5 {[%clk 0:00:17.9]} 55. Nxf5 {[%clk 0:00:10.9]} 55...
Kc7 {[%clk 0:00:16.5]} 56. Kb4 {[%clk 0:00:10.6]} 56... b6 {[%clk 0:00:13.8]}
57. a6 {[%clk 0:00:11.2]} 57... Kb8 {[%clk 0:00:11.7]} 58. Ne7 {[%clk
0:00:09.5]} 58... Kc7 {[%clk 0:00:07.7]} 59. Nxc6 {[%clk 0:00:06.4]} 59... Kxc6
{[%clk 0:00:08.6]} 60. Ka4 {[%clk 0:00:06.1]} 60... Kc5 {[%clk 0:00:02]} 61. a7
{[%clk 0:00:05.6]} 1-0

[Event "Late-Titled-Tuesday-Blitz-October-17-2023"]
[Site "Chess.com"]
[Date "2023.10.17"]
[Round "4"]
[White "lamomiajunior"]
[Black "Zhigalko_Sergei"]
[Result "0-1"]
[WhiteElo "2743"]
[BlackElo "2959"]
[TimeControl "180+1"]
[EndTime "14:39:51 PDT"]
[Termination "Zhigalko_Sergei won by resignation"]

1. d4 {[%clk 0:03:00.9]} 1... Nf6 {[%clk 0:03:00.1]} 2. c4 {[%clk 0:03:01.4]}
2... e6 {[%clk 0:03:00.1]} 3. Nc3 {[%clk 0:03:01.9]} 3... Bb4 {[%clk 0:03:00.2]}
4. e3 {[%clk 0:03:02.5]} 4... O-O {[%clk 0:02:59.6]} 5. Bd2 {[%clk 0:03:02.8]}
5... b6 {[%clk 0:02:56.5]} 6. Nf3 {[%clk 0:03:01.9]} 6... Bb7 {[%clk 0:02:56]}
7. Bd3 {[%clk 0:03:02.2]} 7... Bxc3 {[%clk 0:02:50.7]} 8. Bxc3 {[%clk
0:03:03.1]} 8... Ne4 {[%clk 0:02:51.2]} 9. Bxe4 {[%clk 0:03:03.7]} 9... Bxe4
{[%clk 0:02:52.1]} 10. d5 {[%clk 0:03:04.6]} 10... f6 {[%clk 0:02:52.3]} 11. O-O
{[%clk 0:02:59.6]} 11... e5 {[%clk 0:02:46.2]} 12. d6 {[%clk 0:02:55.3]} 12...
c5 {[%clk 0:02:35.6]} 13. Qe2 {[%clk 0:02:46]} 13... Nc6 {[%clk 0:02:31.9]} 14.
Rad1 {[%clk 0:02:45.4]} 14... Qe8 {[%clk 0:02:30.7]} 15. Nd2 {[%clk 0:02:24.7]}
15... Bc2 {[%clk 0:02:27.6]} 16. Rc1 {[%clk 0:02:23.3]} 16... Bg6 {[%clk
0:02:23.5]} 17. Rfd1 {[%clk 0:02:18.3]} 17... Qe6 {[%clk 0:02:21.6]} 18. Nf1
{[%clk 0:02:17.3]} 18... Rae8 {[%clk 0:02:17.3]} 19. Ng3 {[%clk 0:02:14.9]}
19... f5 {[%clk 0:02:13.4]} 20. b3 {[%clk 0:01:28.8]} 20... Qf7 {[%clk
0:01:53.4]} 21. Qd2 {[%clk 0:01:14.6]} 21... f4 {[%clk 0:01:51.4]} 22. exf4
{[%clk 0:01:15]} 22... exf4 {[%clk 0:01:52.3]} 23. Nf1 {[%clk 0:01:15.7]} 23...
f3 {[%clk 0:01:42.9]} 24. Qd5 {[%clk 0:00:54.2]} 24... fxg2 {[%clk 0:01:35.1]}
25. Qxf7+ {[%clk 0:00:52.5]} 25... Rxf7 {[%clk 0:01:35]} 26. Kxg2 {[%clk
0:00:47.1]} 26... Re2 {[%clk 0:01:34.4]} 27. Rd2 {[%clk 0:00:47.3]} 27... Rfxf2+
{[%clk 0:01:32.4]} 28. Kg3 {[%clk 0:00:45]} 28... Rg2+ {[%clk 0:01:19.7]} 29.
Kf4 {[%clk 0:00:41.3]} 29... Nd8 {[%clk 0:01:00.4]} 30. Rxe2 {[%clk 0:00:39.9]}
30... Rxe2 {[%clk 0:01:01.3]} 31. Re1 {[%clk 0:00:36.1]} 31... Ne6+ {[%clk
0:00:57.9]} 32. Kf3 {[%clk 0:00:34.6]} 32... Nd4+ {[%clk 0:00:44.1]} 33. Kg3
{[%clk 0:00:32.4]} 33... Rxe1 {[%clk 0:00:30.7]} 34. Bxe1 {[%clk 0:00:32.4]}
34... Bb1 {[%clk 0:00:31.4]} 35. Bf2 {[%clk 0:00:27.7]} 35... Nf5+ {[%clk
0:00:26]} 36. Kf4 {[%clk 0:00:27.9]} 36... Nxd6 {[%clk 0:00:26.5]} 37. a3 {[%clk
0:00:26.9]} 37... Ne4 {[%clk 0:00:20.6]} 38. Bh4 {[%clk 0:00:25.5]} 38... Kf7
{[%clk 0:00:17.8]} 39. Bd8 {[%clk 0:00:25.5]} 39... Ke6 {[%clk 0:00:17.1]} 40.
Bc7 {[%clk 0:00:26]} 40... g5+ {[%clk 0:00:14.3]} 41. Ke3 {[%clk 0:00:26.2]}
41... d5 {[%clk 0:00:12.9]} 42. cxd5+ {[%clk 0:00:25.4]} 42... Kxd5 {[%clk
0:00:13.8]} 43. Bb8 {[%clk 0:00:26.1]} 43... a6 {[%clk 0:00:14.3]} 44. Ke2
{[%clk 0:00:24.4]} 44... Ke6 {[%clk 0:00:05.2]} 45. Ne3 {[%clk 0:00:24.4]} 45...
Nf6 {[%clk 0:00:04.3]} 46. Ba7 {[%clk 0:00:23.2]} 46... Nd7 {[%clk 0:00:04.4]}
47. Nc4 {[%clk 0:00:23.3]} 47... b5 {[%clk 0:00:04.7]} 48. Ne3 {[%clk
0:00:23.8]} 48... Be4 {[%clk 0:00:04.4]} 49. b4 {[%clk 0:00:22.5]} 49... c4
{[%clk 0:00:03.5]} 50. Nd1 {[%clk 0:00:22.2]} 50... Bg6 {[%clk 0:00:03.1]} 51.
Ke3 {[%clk 0:00:21.7]} 51... Nf6 {[%clk 0:00:03.1]} 52. Kd4 {[%clk 0:00:22.1]}
52... Kd6 {[%clk 0:00:03]} 53. Ne3 {[%clk 0:00:21.2]} 53... Kc6 {[%clk 0:00:03]}
54. Bb8 {[%clk 0:00:20.8]} 54... Ne4 {[%clk 0:00:03.1]} 55. Ng4 {[%clk
0:00:18.7]} 55... Nd2 {[%clk 0:00:02.7]} 56. Ne5+ {[%clk 0:00:17.7]} 56... Kb7
{[%clk 0:00:03.2]} 57. Bd6 {[%clk 0:00:17.8]} 57... Nb1 {[%clk 0:00:03.3]} 58.
a4 {[%clk 0:00:17.3]} 58... Na3 {[%clk 0:00:02.5]} 59. axb5 {[%clk 0:00:17]}
59... Nxb5+ {[%clk 0:00:03.4]} 60. Kc5 {[%clk 0:00:15.5]} 60... Nxd6 {[%clk
0:00:03.2]} 61. Kd4 {[%clk 0:00:12]} 61... Kb6 {[%clk 0:00:02.6]} 62. Kc3 {[%clk
0:00:10.4]} 62... Bd3 {[%clk 0:00:02.8]} 63. Nd7+ {[%clk 0:00:11.3]} 63... Kc6
{[%clk 0:00:03]} 64. Nf6 {[%clk 0:00:11.8]} 64... Nb5+ {[%clk 0:00:03.3]} 0-1